Workbook

Sheet 表24-工程查核小組委員性別比例
A1: 工程查核小組委員性別比例
K2: 表24
A3: 年別 | B3: 總計 | D3: 男 | H3: 女
B4: 人數 | C4: 比例 | D4: 人數 | E4: 比例 | F4: 實際參與查核人數 | G4: 實際參與查核比例 | H4: 人數 | I4: 比例 | J4: 實際參與查核人數 | K4: 實際參與查核比例
A5: 103年 | B5: =D5+H5 -> 963 | C5: =E5+I5 -> 100% | D5: 936 | E5: =D5/B5 -> 97.20% | F5: 596 | G5: =F5/D5 -> 63.68% | H5: 27 | I5: =H5/B5 -> 2.80% | J5: 16 | K5: =J5/H5 -> 59.26%
A6: 104年 | B6: 970 | C6: 100% | D6: 942 | E6: 97.11% | F6: 606 | G6: 64.33% | H6: 28 | I6: 2.89% | J6: 16 | K6: 57.14%
A7: 105年 | B7: 845 | C7: 100% | D7: 820 | E7: 97.04% | F7: 580 | G7: 70.73% | H7: 25 | I7: 2.96% | J7: 16 | K7: 64.00%
A8: 106年 | B8: 897 | C8: 100% | D8: 862 | E8: 96.10% | F8: 636 | G8: 73.78% | H8: 35 | I8: 3.90% | J8: 27 | K8: 77.14%
A9: 107年 | B9: 860 | C9: 100% | D9: 827 | E9: 96.16% | F9: 625 | G9: 75.57% | H9: 33 | I9: 3.84% | J9: 23 | K9: 69.70%
A10: 108年 | B10: 890 | C10: 100% | D10: 857 | E10: 96.29% | F10: 653 | G10: 76.20% | H10: 33 | I10: 3.71% | J10: 22 | K10: 66.67%
A11: 109年 | B11: =D11+H11 -> 964 | C11: =E11+I11 -> 100% | D11: 930 | E11: =D11/B11 -> 96.47% | F11: 681 | G11: =F11/D11 -> 73.23% | H11: 34 | I11: =H11/B11 -> 3.53% | J11: 23 | K11: =J11/H11 -> 67.65%
A12: 110年 | B12: =D12+H12 -> 996 | C12: 100% | D12: 948 | E12: =D12/B12 -> 95.18% | F12: 670 | G12: =F12/D12 -> 70.68% | H12: 48 | I12: =H12/B12 -> 4.82% | J12: 36 | K12: =J12/H12 -> 75.00%
A13: 111年 | B13: =D13+H13 -> 995 | C13: 100% | D13: 942 | E13: =D13/B13 -> 94.67% | F13: 824 | G13: =F13/D13 -> 87.47% | H13: 53 | I13: =H13/B13 -> 5.33% | J13: 31 | K13: =J13/H13 -> 58.49%
A14: 112年 | B14: 1,022 | C14: 100% | D14: 970 | E14: =D14/B14 -> 94.91% | F14: 700 | G14: =F14/D14 -> 72.16% | H14: 52 | I14: =H14/B14 -> 5.09% | J14: 25 | K14: =J14/H14 -> 48.08%
A15: 113年 | B15: 979 | C15: 100% | D15: 927 | E15: =D15/B15 -> 94.69% | F15: 683 | G15: =F15/D15 -> 73.68% | H15: 52 | I15: =H15/B15 -> 5.31% | J15: 35 | K15: =J15/H15 -> 67.31%
A16: 資料來源：工管處
A17: 備註： 1.性別資料使用：因工程專業領域之女性人數原本即較男性少，加上施工查核作業均屬戶外，且部分工程需至偏遠山區，工作環境特殊與個人意願等因素，造成女性委員人數偏低，惟實際參與查核比例相當。 2.應用深化：持續宣導各機關工程施工查核小組加強女性查核委員之遴聘。另為了解查核委員實際參與人數及其比例，將實際參與情形納入複分類。 3.未進行國際性別統計比較原因說明：有關查核委員之應用無涉及國際化業務，亦無相關資料比較。
